{"text_format":"1","workbook":"xlsx","n_sheets":2,"sheets":["Feuil1","Condidats"],"not_rendered":{"charts":0,"images":0,"macros":1,"external_links":0,"defined_names":1,"comments":0,"pivot_tables":0},"unopened":[],"bounds":{"document_bytes":16777216,"sheet_cells":100000,"rows_first":2000,"rows_last":500,"rows_between":2000,"halvings":0,"cell_chars":16384,"cell_head_chars":4096},"cells_cut":0,"cells_raw":0,"read":"whole","date_system":"1900"}

{"sheet":"Feuil1","index":0,"n_rows":28,"n_cols":26,"rows_kept":28,"cut":false,"hidden":false,"merged":[]}
["المرشح 1",null,null,null,"المرشح 2 ",null,null,null,"المرشح 3   ",null,null,null,"المرشح 4",null,null,null,"المرشح 5 ",null,null,null,"المرشح 6   "]
[{"$f":"SUM(B28:D28)","v":42},null,null,null,{"$f":"SUM(F28:H28)","v":51},null,null,null,{"$f":"SUM(J28:L28)","v":64},null,null,null,{"$f":"SUM(N28:P28)","v":30},null,null,null,{"$f":"SUM(R28:T28)","v":25},null,null,null,{"$f":"SUM(V28:X28)","v":49}]
[null,"x","x",null,null,"x","x","x",null,"x","x","x",null,"x","x",null,null,"x",null,null,null,"x","x"]
[null,"x","x",null,null,"x","x",null,null,"x","x","x",null,"x","x",null,null,"x",null,null,null,"x","x"]
[null,"x","x",null,null,"x","x",null,null,"x","x","x",null,"x","x",null,null,"x",null,null,null,"x","x"]
[null,"x","x",null,null,"x","x",null,null,"x","x","x",null,"x","x",null,null,"x",null,null,null,"x","x"]
[null,"x","x",null,null,"x","x",null,null,"x","x","x",null,"x","x",null,null,"x",null,null,null,"x","x"]
[null,"x","x",null,null,"x","x",null,null,"x","x","x",null,"x",null,null,null,"x",null,null,null,"x","x"]
[null,"x","x",null,null,"x","x",null,null,"x","x","x",null,"x",null,null,null,"x",null,null,null,"x","x"]
[null,"x","x",null,null,"x","x",null,null,"x","x","x",null,"x",null,null,null,"x",null,null,null,"x","x"]
[null,"x","x",null,null,"x","x",null,null,"x","x","x",null,"x",null,null,null,"x",null,null,null,"x","x"]
[null,"x","x",null,null,"x","x",null,null,"x","x","x",null,"x",null,null,null,"x",null,null,null,"x","x"]
[null,"x","x",null,null,"x","x",null,null,"x","x","x",null,"x",null,null,null,"x",null,null,null,"x","x"]
[null,"x","x",null,null,"x","x",null,null,"x","x","x",null,"x",null,null,null,"x",null,null,null,"x","x",null,null,"السلام عليكم ورحمة الله وبركاته"]
[null,"x","x",null,null,"x","x",null,null,"x","x","x",null,"x",null,null,null,"x",null,null,null,"x","x",null,null,"المرجو المساعدة ولكم جزيل الشكر"]
[null,"x","x",null,null,"x","x",null,null,"x","x","x",null,"x",null,null,null,"x",null,null,null,"x","x",null,null,"أريد من خلال  يوزر فورم إدخال أصوات  المترشح  حينما نختار اسمه من القائمة المنسدلة ثم وضع علامة x في مربع النص، "]
[null,"x","x",null,null,"x","x",null,null,"x","x",null,null,"x",null,null,null,"x",null,null,null,"x","x",null,null,"حيث أن لكل مترشح 3 أعمدة مكونة من 25 سطر ، "]
[null,"x","x",null,null,"x","x",null,null,"x","x",null,null,"x",null,null,null,"x",null,null,null,"x","x",null,null,"وعندما يمتلئ العمود الأول 25 علامة ينتقل الإدخال إلى الثاني ثم إلى العمود الثالث تلقائيا "]
[null,"x","x",null,null,"x","x",null,null,"x","x",null,null,"x",null,null,null,"x",null,null,null,"x","x",null,null,"وهكذا كلما اخترنا مرشح من المترشحين."]
[null,"x",null,null,null,"x","x",null,null,"x","x",null,null,"x",null,null,null,"x",null,null,null,"x","x",null,null,"جزاكم الله خيرا عنا كل خير."]
[null,"x",null,null,null,"x","x",null,null,"x","x",null,null,"x",null,null,null,"x",null,null,null,"x","x"]
[null,"x",null,null,null,"x","x",null,null,"x","x",null,null,"x",null,null,null,"x",null,null,null,"x","x"]
[null,"x",null,null,null,"x","x",null,null,"x","x",null,null,"x",null,null,null,"x",null,null,null,"x","x"]
[null,"x",null,null,null,"x","x",null,null,"x","x",null,null,"x",null,null,null,"x",null,null,null,"x","x"]
[null,"x",null,null,null,"x","x",null,null,"x","x",null,null,"x",null,null,null,"x",null,null,null,"x","x"]
[null,"x",null,null,null,"x","x",null,null,"x","x",null,null,"x",null,null,null,"x",null,null,null,"x","x"]
[null,"x",null,null,null,"x","x",null,null,"x","x",null,null,"x",null,null,null,"x",null,null,null,"x"]
[null,{"$f":"COUNTIF(B2:B27,\"x\")","v":25},{"$f":"COUNTIF(C2:C27,\"x\")","v":17},{"$f":"COUNTIF(D2:D27,\"x\")","v":0},null,{"$f":"COUNTIF(F2:F27,\"x\")","v":25},{"$f":"COUNTIF(G2:G27,\"x\")","v":25},{"$f":"COUNTIF(H2:H27,\"x\")","v":1},null,{"$f":"COUNTIF(J2:J27,\"x\")","v":25},{"$f":"COUNTIF(K2:K27,\"x\")","v":25},{"$f":"COUNTIF(L2:L27,\"x\")","v":14},null,{"$f":"COUNTIF(N2:N27,\"x\")","v":25},{"$f":"COUNTIF(O2:O27,\"x\")","v":5},{"$f":"COUNTIF(P2:P27,\"x\")","v":0},null,{"$f":"COUNTIF(R2:R27,\"x\")","v":25},{"$f":"COUNTIF(S2:S27,\"x\")","v":0},{"$f":"COUNTIF(T2:T27,\"x\")","v":0},null,{"$f":"COUNTIF(V2:V27,\"x\")","v":25},{"$f":"COUNTIF(W2:W27,\"x\")","v":24},{"$f":"COUNTIF(X2:X27,\"x\")","v":0}]

{"sheet":"Condidats","index":1,"n_rows":11,"n_cols":1,"rows_kept":11,"cut":false,"hidden":false,"merged":[]}
["الاسم الكامل"]
["المرشح 1"]
["المرشح 2"]
["المرشح 3"]
["المرشح 4"]
["المرشح 5"]
["المرشح 6"]
["المرشح 7"]
["المرشح 8"]
["المرشح 9"]
["المرشح 10"]